[Event "*** SCC Grand Prix: Titled Tuesday Blitz"]
[Site "Chess.com"]
[Date "2020.07.14"]
[Round "6"]
[White "yuliagok"]
[Black "Nara_Kh"]
[Result "0-1"]
[WhiteElo "2100"]
[BlackElo "2264"]
[TimeControl "180+1"]
[EndTime "11:05:14 PDT"]
[Termination "Nara_Kh won by resignation"]

1. d4 {[%clk 0:03:00.9]} 1... d5 {[%clk 0:02:59.1]} 2. c4 {[%clk 0:02:59.8]}
2... c6 {[%clk 0:02:58.7]} 3. cxd5 {[%clk 0:02:58.3]} 3... cxd5 {[%clk 0:02:58]}
4. Nc3 {[%clk 0:02:58.1]} 4... Nf6 {[%clk 0:02:57.8]} 5. Nf3 {[%clk 0:02:58]}
5... Nc6 {[%clk 0:02:57.7]} 6. Bf4 {[%clk 0:02:56.9]} 6... Bf5 {[%clk
0:02:57.5]} 7. e3 {[%clk 0:02:56.5]} 7... e6 {[%clk 0:02:57.9]} 8. Qb3 {[%clk
0:02:55.2]} 8... Bb4 {[%clk 0:02:37.7]} 9. a3 {[%clk 0:02:45.4]} 9... Qa5 {[%clk
0:02:19.4]} 10. Rc1 {[%clk 0:02:43.1]} 10... Bxc3+ {[%clk 0:02:16.8]} 11. Qxc3
{[%clk 0:02:38.7]} 11... Qxc3+ {[%clk 0:02:14.7]} 12. bxc3 {[%clk 0:02:28]}
12... O-O {[%clk 0:02:10]} 13. Ne5 {[%clk 0:02:26.5]} 13... Nxe5 {[%clk
0:02:03.6]} 14. Bxe5 {[%clk 0:02:24.5]} 14... Nd7 {[%clk 0:02:01.7]} 15. Bd6
{[%clk 0:02:24]} 15... Rfc8 {[%clk 0:02:00.7]} 16. Bb5 {[%clk 0:02:15.1]} 16...
Nb8 {[%clk 0:01:36.5]} 17. f3 {[%clk 0:02:10.4]} 17... Nc6 {[%clk 0:01:34.2]}
18. Kd2 {[%clk 0:02:02.1]} 18... Na5 {[%clk 0:01:33.2]} 19. Ba4 {[%clk
0:01:32.9]} 19... Nc4+ {[%clk 0:01:31.2]} 20. Ke2 {[%clk 0:01:31.9]} 20... Nxd6
{[%clk 0:01:31.8]} 21. g4 {[%clk 0:01:30.5]} 21... Bg6 {[%clk 0:01:30.9]} 22. h4
{[%clk 0:01:29.6]} 22... h5 {[%clk 0:01:26.6]} 23. gxh5 {[%clk 0:01:27.7]} 23...
Bxh5 {[%clk 0:01:26.2]} 24. Rb1 {[%clk 0:01:22.2]} 24... Rxc3 {[%clk 0:01:24.4]}
25. Rb3 {[%clk 0:01:18.7]} 25... Ne4 {[%clk 0:01:18.2]} 26. Rg1 {[%clk
0:01:13.7]} 26... Bxf3+ {[%clk 0:01:11.4]} 27. Kxf3 {[%clk 0:01:05.6]} 27...
Nd2+ {[%clk 0:01:08.2]} 0-1

[Event "*** SCC Grand Prix: Titled Tuesday Blitz"]
[Site "Chess.com"]
[Date "2020.07.14"]
[Round "6"]
[White "Flawless_Fighter"]
[Black "lucachess49"]
[Result "0-1"]
[WhiteElo "2558"]
[BlackElo "2442"]
[TimeControl "180+1"]
[EndTime "11:05:15 PDT"]
[Termination "lucachess49 won by resignation"]

1. e4 {[%clk 0:03:00.9]} 1... e5 {[%clk 0:02:59.5]} 2. Nf3 {[%clk 0:03:01.3]}
2... Nc6 {[%clk 0:03:00.2]} 3. Bb5 {[%clk 0:03:01.9]} 3... a6 {[%clk 0:02:59.2]}
4. Ba4 {[%clk 0:03:02.5]} 4... Nf6 {[%clk 0:02:59.3]} 5. O-O {[%clk 0:03:03.2]}
5... Be7 {[%clk 0:02:59.9]} 6. Re1 {[%clk 0:03:03.3]} 6... b5 {[%clk 0:03:00]}
7. Bb3 {[%clk 0:03:04]} 7... d6 {[%clk 0:03:00.8]} 8. c3 {[%clk 0:03:03.8]} 8...
O-O {[%clk 0:03:00.5]} 9. h3 {[%clk 0:03:04.4]} 9... Na5 {[%clk 0:03:00.3]} 10.
Bc2 {[%clk 0:03:04.2]} 10... c5 {[%clk 0:03:01.2]} 11. d4 {[%clk 0:03:04.8]}
11... Qc7 {[%clk 0:03:01.7]} 12. d5 {[%clk 0:03:03.1]} 12... Bd7 {[%clk
0:03:00.6]} 13. b3 {[%clk 0:02:59.9]} 13... Nb7 {[%clk 0:02:59.2]} 14. Nbd2
{[%clk 0:02:58.6]} 14... Rfc8 {[%clk 0:02:56.7]} 15. Bd3 {[%clk 0:02:55]} 15...
c4 {[%clk 0:02:24.7]} 16. bxc4 {[%clk 0:02:54.3]} 16... Nc5 {[%clk 0:02:24.8]}
17. Bf1 {[%clk 0:02:47.6]} 17... bxc4 {[%clk 0:02:23.8]} 18. Ba3 {[%clk
0:02:36.3]} 18... Ba4 {[%clk 0:02:20.6]} 19. Qc1 {[%clk 0:02:24.4]} 19... Nd3
{[%clk 0:02:07.7]} 20. Bxd3 {[%clk 0:02:24.6]} 20... cxd3 {[%clk 0:02:08.6]} 21.
c4 {[%clk 0:02:23.7]} 21... Nd7 {[%clk 0:02:01.3]} 22. Qc3 {[%clk 0:02:20.5]}
22... Bc2 {[%clk 0:02:00.1]} 23. Rec1 {[%clk 0:02:16.9]} 23... Nb6 {[%clk
0:01:57.7]} 24. Ne1 {[%clk 0:02:03.1]} 24... Na4 {[%clk 0:01:42.3]} 25. Qb4
{[%clk 0:01:46.2]} 25... Rab8 {[%clk 0:01:33.4]} 26. Nxc2 {[%clk 0:01:45.8]}
26... Rxb4 {[%clk 0:01:33.5]} 27. Nxb4 {[%clk 0:01:46.7]} 27... Bg5 {[%clk
0:01:33.5]} 28. Nb3 {[%clk 0:01:14.7]} 28... Bxc1 {[%clk 0:01:30.9]} 29. Rxc1
{[%clk 0:01:15.6]} 29... Nc5 {[%clk 0:01:20.9]} 30. Nd2 {[%clk 0:01:10.5]} 30...
Qa5 {[%clk 0:01:12.5]} 31. Rc3 {[%clk 0:01:07.4]} 31... Rb8 {[%clk 0:01:06.1]}
0-1

[Event "*** SCC Grand Prix: Titled Tuesday Blitz"]
[Site "Chess.com"]
[Date "2020.07.14"]
[Round "6"]
[White "heyiampotato"]
[Black "AniJak"]
[Result "1-0"]
[WhiteElo "2525"]
[BlackElo "2321"]
[TimeControl "180+1"]
[EndTime "11:05:15 PDT"]
[Termination "heyiampotato won by resignation"]

1. d4 {[%clk 0:03:00.9]} 1... d5 {[%clk 0:02:59.5]} 2. Nf3 {[%clk 0:03:00.6]}
2... Nf6 {[%clk 0:02:59.2]} 3. c4 {[%clk 0:03:00.5]} 3... c6 {[%clk 0:02:59.3]}
4. Nbd2 {[%clk 0:03:00.2]} 4... e6 {[%clk 0:02:59.1]} 5. e3 {[%clk 0:03:00.3]}
5... Bd6 {[%clk 0:02:58.9]} 6. b3 {[%clk 0:02:57.7]} 6... O-O {[%clk 0:02:58.4]}
7. Bb2 {[%clk 0:02:58.3]} 7... Nbd7 {[%clk 0:02:58.7]} 8. Bd3 {[%clk 0:02:57.7]}
8... Re8 {[%clk 0:02:57.6]} 9. Ne5 {[%clk 0:02:56.3]} 9... Nf8 {[%clk
0:02:53.3]} 10. O-O {[%clk 0:02:53.8]} 10... Bxe5 {[%clk 0:02:46.4]} 11. dxe5
{[%clk 0:02:53.4]} 11... N6d7 {[%clk 0:02:46.9]} 12. Rc1 {[%clk 0:02:38.2]}
12... b6 {[%clk 0:02:40.7]} 13. f4 {[%clk 0:02:32.7]} 13... Bb7 {[%clk
0:02:39.1]} 14. Qg4 {[%clk 0:02:27.1]} 14... g6 {[%clk 0:02:38.6]} 15. Bb1
{[%clk 0:02:10.6]} 15... a5 {[%clk 0:02:34.8]} 16. Nf3 {[%clk 0:02:03.3]} 16...
dxc4 {[%clk 0:02:31.8]} 17. bxc4 {[%clk 0:02:01.2]} 17... c5 {[%clk 0:02:28]}
18. Ng5 {[%clk 0:01:57.6]} 18... Qe7 {[%clk 0:02:22.5]} 19. Rcd1 {[%clk
0:01:56.4]} 19... Red8 {[%clk 0:02:17.2]} 20. Rd6 {[%clk 0:01:52.7]} 20... Nb8
{[%clk 0:02:08.8]} 21. Rfd1 {[%clk 0:01:51.9]} 21... Nc6 {[%clk 0:02:07.6]} 22.
Ne4 {[%clk 0:01:50]} 22... Kg7 {[%clk 0:01:41.6]} 23. Nf6 {[%clk 0:01:37.8]}
23... h6 {[%clk 0:01:26.7]} 24. h4 {[%clk 0:01:35.3]} 24... Nh7 {[%clk
0:01:24.6]} 25. Rd7 {[%clk 0:01:27.6]} 25... Rxd7 {[%clk 0:01:09.5]} 26. Rxd7
{[%clk 0:01:26.8]} 26... Qf8 {[%clk 0:01:09.3]} 27. Rxb7 {[%clk 0:01:23.9]}
27... Nxf6 {[%clk 0:01:08.7]} 28. exf6+ {[%clk 0:01:23.7]} 28... Kh8 {[%clk
0:01:07.5]} 29. Bxg6 {[%clk 0:01:10.2]} 29... Nd8 {[%clk 0:01:07.3]} 30. Re7
{[%clk 0:01:00.3]} 1-0

[Event "*** SCC Grand Prix: Titled Tuesday Blitz"]
[Site "Chess.com"]
[Date "2020.07.14"]
[Round "6"]
[White "AwareIdea"]
[Black "pavelalexandru07"]
[Result "1-0"]
[WhiteElo "2463"]
[BlackElo "2143"]
[TimeControl "180+1"]
[EndTime "11:05:18 PDT"]
[Termination "AwareIdea won by resignation"]

1. c4 {[%clk 0:03:00.9]} 1... c5 {[%clk 0:02:59.3]} 2. Nf3 {[%clk 0:03:00.2]}
2... Nf6 {[%clk 0:02:58.9]} 3. Nc3 {[%clk 0:03:00.4]} 3... a6 {[%clk 0:02:58.7]}
4. e3 {[%clk 0:03:00.9]} 4... Nc6 {[%clk 0:02:44.2]} 5. d4 {[%clk 0:02:59.7]}
5... cxd4 {[%clk 0:02:43.9]} 6. Nxd4 {[%clk 0:02:58.2]} 6... d5 {[%clk
0:02:42.6]} 7. cxd5 {[%clk 0:02:13.5]} 7... Nxd5 {[%clk 0:02:41.1]} 8. Nxc6
{[%clk 0:02:12.8]} 8... bxc6 {[%clk 0:02:41.1]} 9. Bc4 {[%clk 0:02:03.8]} 9...
e6 {[%clk 0:02:34.6]} 10. O-O {[%clk 0:01:58.8]} 10... Be7 {[%clk 0:02:32.1]}
11. Qc2 {[%clk 0:01:50.5]} 11... O-O {[%clk 0:02:29.9]} 12. Rd1 {[%clk
0:01:50.1]} 12... Qa5 {[%clk 0:02:22.2]} 13. Bd2 {[%clk 0:01:46.3]} 13... Qb6
{[%clk 0:01:37]} 14. Na4 {[%clk 0:01:31.4]} 14... Qa7 {[%clk 0:01:29.7]} 15. Bd3
{[%clk 0:01:27.1]} 15... h6 {[%clk 0:01:13.2]} 16. Rac1 {[%clk 0:01:25.6]} 16...
Bb7 {[%clk 0:01:08.9]} 17. Nc5 {[%clk 0:01:23]} 17... Rac8 {[%clk 0:00:57.1]}
18. e4 {[%clk 0:01:15.9]} 18... Nf6 {[%clk 0:00:52.5]} 19. Be3 {[%clk
0:01:04.1]} 19... Qa8 {[%clk 0:00:50.8]} 20. f3 {[%clk 0:01:02.2]} 20... Rfd8
{[%clk 0:00:49.8]} 21. Be2 {[%clk 0:01:01.5]} 21... Nd7 {[%clk 0:00:39.4]} 22.
Nxd7 {[%clk 0:00:57]} 1-0

[Event "*** SCC Grand Prix: Titled Tuesday Blitz"]
[Site "Chess.com"]
[Date "2020.07.14"]
[Round "6"]
[White "aripov96"]
[Black "Yoshikrov"]
[Result "1-0"]
[WhiteElo "2420"]
[BlackElo "2117"]
[TimeControl "180+1"]
[EndTime "11:05:28 PDT"]
[Termination "aripov96 won by resignation"]

1. e4 {[%clk 0:03:00]} 1... c5 {[%clk 0:03:00.1]} 2. Nf3 {[%clk 0:02:58.8]} 2...
d6 {[%clk 0:03:00.4]} 3. Nc3 {[%clk 0:02:57.4]} 3... Nf6 {[%clk 0:02:59.5]} 4.
Bb5+ {[%clk 0:02:57.2]} 4... Bd7 {[%clk 0:02:52.4]} 5. Bxd7+ {[%clk 0:02:55.9]}
5... Qxd7 {[%clk 0:02:51.1]} 6. O-O {[%clk 0:02:56.8]} 6... Nc6 {[%clk
0:02:46.4]} 7. b3 {[%clk 0:02:55.8]} 7... e5 {[%clk 0:02:41.8]} 8. Bb2 {[%clk
0:02:55.8]} 8... Be7 {[%clk 0:02:41.1]} 9. Re1 {[%clk 0:02:54.1]} 9... O-O
{[%clk 0:02:41.1]} 10. Nd5 {[%clk 0:02:54.4]} 10... Nd4 {[%clk 0:02:37.6]} 11.
Nxe7+ {[%clk 0:02:34.8]} 11... Qxe7 {[%clk 0:02:37]} 12. Nxd4 {[%clk 0:02:32.5]}
12... cxd4 {[%clk 0:02:36.7]} 13. c3 {[%clk 0:02:31.6]} 13... dxc3 {[%clk
0:02:35.7]} 14. dxc3 {[%clk 0:02:32.4]} 14... Rac8 {[%clk 0:02:31.5]} 15. c4
{[%clk 0:02:32.1]} 15... Rfd8 {[%clk 0:02:24.8]} 16. Ba3 {[%clk 0:02:31.7]}
16... Qe6 {[%clk 0:02:24.8]} 17. Qd3 {[%clk 0:02:26.9]} 17... Nd7 {[%clk
0:02:16.6]} 18. Qxd6 {[%clk 0:02:21.5]} 18... Qxd6 {[%clk 0:02:10.6]} 19. Bxd6
{[%clk 0:02:22.4]} 19... f6 {[%clk 0:02:08.7]} 20. Rad1 {[%clk 0:02:17.6]} 20...
Nf8 {[%clk 0:02:04.7]} 21. Bxf8 {[%clk 0:02:06.5]} 21... Kxf8 {[%clk 0:02:04.7]}
22. Kf1 {[%clk 0:02:06.9]} 22... Ke7 {[%clk 0:02:05.1]} 23. Ke2 {[%clk 0:02:07]}
23... a6 {[%clk 0:01:58.2]} 24. Rxd8 {[%clk 0:02:05.5]} 24... Rxd8 {[%clk
0:01:58.3]} 25. Rd1 {[%clk 0:02:06.2]} 25... Rc8 {[%clk 0:01:57.1]} 26. Rd5
{[%clk 0:02:04.9]} 26... Rc7 {[%clk 0:01:57.3]} 27. Kd3 {[%clk 0:02:04.3]} 27...
Ke6 {[%clk 0:01:57.7]} 28. c5 {[%clk 0:02:00.2]} 28... f5 {[%clk 0:01:54.9]} 29.
b4 {[%clk 0:01:47.5]} 29... g6 {[%clk 0:01:41.9]} 30. Rd6+ {[%clk 0:01:41.4]}
30... Ke7 {[%clk 0:01:41.5]} 31. Kc4 {[%clk 0:01:40.6]} 31... fxe4 {[%clk
0:01:39.5]} 32. Kd5 {[%clk 0:01:40.3]} 32... Kf7 {[%clk 0:01:21.9]} 33. Kxe4
{[%clk 0:01:37.8]} 33... Re7 {[%clk 0:01:20.6]} 34. a4 {[%clk 0:01:30.1]} 34...
Kg7 {[%clk 0:01:12.3]} 35. b5 {[%clk 0:01:29]} 35... axb5 {[%clk 0:01:12]} 36.
axb5 {[%clk 0:01:29.9]} 36... Kf7 {[%clk 0:01:11.6]} 37. Kd5 {[%clk 0:01:16.2]}
37... e4 {[%clk 0:01:10.6]} 38. c6 {[%clk 0:01:16]} 38... bxc6+ {[%clk
0:01:10.8]} 39. bxc6 {[%clk 0:01:16.9]} 39... Ke8 {[%clk 0:01:09.3]} 40. Re6
{[%clk 0:01:12.2]} 1-0

[Event "*** SCC Grand Prix: Titled Tuesday Blitz"]
[Site "Chess.com"]
[Date "2020.07.14"]
[Round "6"]
[White "GMNickPert"]
[Black "Jumbo"]
[Result "1-0"]
[WhiteElo "2698"]
[BlackElo "2850"]
[TimeControl "180+1"]
[EndTime "11:05:37 PDT"]
[Termination "GMNickPert won by checkmate"]

1. d4 {[%clk 0:03:00.9]} 1... Nf6 {[%clk 0:02:34.6]} 2. Nf3 {[%clk 0:03:00.5]}
2... b6 {[%clk 0:02:31.1]} 3. c4 {[%clk 0:02:58.8]} 3... Bb7 {[%clk 0:02:30.7]}
4. Nc3 {[%clk 0:02:59.1]} 4... e6 {[%clk 0:02:30.9]} 5. a3 {[%clk 0:02:59]} 5...
d5 {[%clk 0:02:29.1]} 6. cxd5 {[%clk 0:02:59.9]} 6... Nxd5 {[%clk 0:02:29.5]} 7.
Qc2 {[%clk 0:02:59.7]} 7... Be7 {[%clk 0:02:27.8]} 8. e4 {[%clk 0:02:57.6]} 8...
Nxc3 {[%clk 0:02:27.4]} 9. bxc3 {[%clk 0:02:58.5]} 9... O-O {[%clk 0:02:23.5]}
10. Bd3 {[%clk 0:02:58.4]} 10... c5 {[%clk 0:02:23.9]} 11. O-O {[%clk
0:02:57.9]} 11... Nc6 {[%clk 0:02:22.1]} 12. Bb2 {[%clk 0:02:56.3]} 12... Rc8
{[%clk 0:02:06.6]} 13. Qe2 {[%clk 0:02:55.8]} 13... Na5 {[%clk 0:01:58.5]} 14.
Rad1 {[%clk 0:02:54.9]} 14... Qc7 {[%clk 0:01:48.4]} 15. d5 {[%clk 0:02:52.3]}
15... c4 {[%clk 0:01:36.3]} 16. Bb1 {[%clk 0:02:45.3]} 16... exd5 {[%clk
0:01:36.7]} 17. exd5 {[%clk 0:02:45.2]} 17... Bd6 {[%clk 0:01:35.9]} 18. Bc1
{[%clk 0:02:41.2]} 18... Rfe8 {[%clk 0:01:32.7]} 19. Bxh7+ {[%clk 0:02:37.6]}
19... Kxh7 {[%clk 0:01:30.7]} 20. Ng5+ {[%clk 0:02:37.8]} 20... Kg6 {[%clk
0:01:22.9]} 21. Qc2+ {[%clk 0:02:18.8]} 21... f5 {[%clk 0:01:22.5]} 22. g4
{[%clk 0:02:05.4]} 22... Re5 {[%clk 0:00:55.5]} 23. h4 {[%clk 0:01:48.5]} 23...
Nb3 {[%clk 0:00:24.9]} 24. Bf4 {[%clk 0:01:47.1]} 24... Qe7 {[%clk 0:00:19.3]}
25. Rde1 {[%clk 0:01:40.2]} 25... Rf8 {[%clk 0:00:12.6]} 26. h5+ {[%clk
0:01:32.6]} 26... Kf6 {[%clk 0:00:10.3]} 27. Bxe5+ {[%clk 0:01:22.3]} 27... Bxe5
{[%clk 0:00:09.5]} 28. Qxf5# {[%clk 0:01:21.6]} 1-0

[Event "*** SCC Grand Prix: Titled Tuesday Blitz"]
[Site "Chess.com"]
[Date "2020.07.14"]
[Round "6"]
[White "gagtemp"]
[Black "czasnaszachy"]
[Result "1-0"]
[WhiteElo "1939"]
[BlackElo "2188"]
[TimeControl "180+1"]
[EndTime "11:05:40 PDT"]
[Termination "gagtemp won by resignation"]

1. e4 {[%clk 0:03:00.9]} 1... c5 {[%clk 0:02:56.3]} 2. Nf3 {[%clk 0:03:00]} 2...
e6 {[%clk 0:02:56.5]} 3. d4 {[%clk 0:03:00.1]} 3... cxd4 {[%clk 0:02:56.4]} 4.
Nxd4 {[%clk 0:03:01]} 4... Nc6 {[%clk 0:02:56.9]} 5. Nc3 {[%clk 0:03:01.1]} 5...
Qc7 {[%clk 0:02:55.3]} 6. Be3 {[%clk 0:03:00.8]} 6... a6 {[%clk 0:02:55.3]} 7.
Bd3 {[%clk 0:03:01.1]} 7... Nf6 {[%clk 0:02:54.8]} 8. O-O {[%clk 0:03:01.4]}
8... Be7 {[%clk 0:02:50.2]} 9. Kh1 {[%clk 0:03:01.5]} 9... O-O {[%clk 0:02:49]}
10. f4 {[%clk 0:03:01.2]} 10... d6 {[%clk 0:02:46.7]} 11. Qe1 {[%clk 0:03:00.9]}
11... b5 {[%clk 0:02:44.7]} 12. a3 {[%clk 0:03:00.5]} 12... Bb7 {[%clk
0:02:44.4]} 13. Qg3 {[%clk 0:02:56.2]} 13... Na5 {[%clk 0:02:22.3]} 14. e5
{[%clk 0:02:41.3]} 14... Nd7 {[%clk 0:02:05.2]} 15. f5 {[%clk 0:02:12.8]} 15...
exf5 {[%clk 0:01:47.4]} 16. Nxf5 {[%clk 0:02:02.1]} 16... g6 {[%clk 0:00:52.7]}
17. Nxe7+ {[%clk 0:01:57.9]} 17... Kh8 {[%clk 0:00:49.3]} 18. exd6 {[%clk
0:01:53.9]} 18... Qd8 {[%clk 0:00:44.4]} 19. Bd4+ {[%clk 0:01:41.8]} 19... f6
{[%clk 0:00:41.2]} 20. Nxg6+ {[%clk 0:01:08]} 20... hxg6 {[%clk 0:00:37.9]} 21.
Qxg6 {[%clk 0:01:07.4]} 21... Rf7 {[%clk 0:00:23.9]} 22. Qxf7 {[%clk 0:00:54.6]}
1-0

[Event "*** SCC Grand Prix: Titled Tuesday Blitz"]
[Site "Chess.com"]
[Date "2020.07.14"]
[Round "6"]
[White "tdf98pantani"]
[Black "Shuvalov"]
[Result "1-0"]
[WhiteElo "2678"]
[BlackElo "2487"]
[TimeControl "180+1"]
[EndTime "11:05:43 PDT"]
[Termination "tdf98pantani won by resignation"]

1. d4 {[%clk 0:03:00.9]} 1... Nf6 {[%clk 0:02:58.9]} 2. c4 {[%clk 0:03:01.1]}
2... g6 {[%clk 0:02:58.2]} 3. Nc3 {[%clk 0:03:01.3]} 3... d5 {[%clk 0:02:58.3]}
4. cxd5 {[%clk 0:03:00.8]} 4... Nxd5 {[%clk 0:02:59.2]} 5. e4 {[%clk 0:03:01.1]}
5... Nxc3 {[%clk 0:02:59.2]} 6. bxc3 {[%clk 0:03:01.5]} 6... c5 {[%clk
0:02:57.8]} 7. Be3 {[%clk 0:03:01.4]} 7... Bg7 {[%clk 0:02:57.2]} 8. Rc1 {[%clk
0:03:00]} 8... O-O {[%clk 0:02:54.4]} 9. Qd2 {[%clk 0:02:56.9]} 9... Qc7 {[%clk
0:02:50]} 10. d5 {[%clk 0:02:55.9]} 10... c4 {[%clk 0:02:38.5]} 11. Bd4 {[%clk
0:02:42.6]} 11... e5 {[%clk 0:02:36.9]} 12. dxe6 {[%clk 0:02:39.1]} 12... Bxe6
{[%clk 0:02:36.6]} 13. Bxg7 {[%clk 0:02:37.3]} 13... Kxg7 {[%clk 0:02:37.5]} 14.
Nf3 {[%clk 0:02:37.6]} 14... Nc6 {[%clk 0:02:36.1]} 15. Be2 {[%clk 0:02:34.5]}
15... Rfd8 {[%clk 0:02:32.8]} 16. Qe3 {[%clk 0:02:32.5]} 16... Ne5 {[%clk
0:02:14.4]} 17. Nd4 {[%clk 0:02:31.5]} 17... Bd7 {[%clk 0:02:09.9]} 18. O-O
{[%clk 0:02:30.3]} 18... b5 {[%clk 0:02:05.6]} 19. f4 {[%clk 0:02:27.4]} 19...
Nc6 {[%clk 0:01:37.2]} 20. Nxb5 {[%clk 0:02:24.7]} 20... Qa5 {[%clk 0:01:30.5]}
21. Bxc4 {[%clk 0:02:18.2]} 21... Be6 {[%clk 0:01:21.4]} 22. Bxe6 {[%clk
0:02:09.1]} 22... fxe6 {[%clk 0:01:22.3]} 23. Nd4 {[%clk 0:02:07.8]} 23... Nxd4
{[%clk 0:01:10.1]} 24. cxd4 {[%clk 0:02:08]} 24... Rac8 {[%clk 0:01:07.1]} 25.
f5 {[%clk 0:02:03.7]} 25... exf5 {[%clk 0:01:05.2]} 26. exf5 {[%clk 0:02:03.2]}
26... Rxc1 {[%clk 0:01:04.1]} 27. f6+ {[%clk 0:02:02.3]} 27... Kh8 {[%clk
0:01:02.9]} 28. Rxc1 {[%clk 0:02:01.2]} 28... Qb6 {[%clk 0:00:58.2]} 29. Qe5
{[%clk 0:01:55.9]} 29... Kg8 {[%clk 0:00:51.6]} 30. Rc5 {[%clk 0:01:33.3]} 30...
Qd6 {[%clk 0:00:47.7]} 31. Rc8 {[%clk 0:01:24.3]} 31... Kf7 {[%clk 0:00:42.9]}
32. Rc7+ {[%clk 0:01:18.4]} 32... Kf8 {[%clk 0:00:25.2]} 33. Qe7+ {[%clk
0:01:16.5]} 33... Qxe7 {[%clk 0:00:25.5]} 34. fxe7+ {[%clk 0:01:16.9]} 34... Ke8
{[%clk 0:00:26.4]} 35. exd8=Q+ {[%clk 0:01:17.3]} 35... Kxd8 {[%clk 0:00:27.3]}
36. Rxh7 {[%clk 0:01:17.2]} 1-0

[Event "*** SCC Grand Prix: Titled Tuesday Blitz"]
[Site "Chess.com"]
[Date "2020.07.14"]
[Round "6"]
[White "Slovak_fighter2000"]
[Black "PawnEatingZombie"]
[Result "1-0"]
[WhiteElo "2448"]
[BlackElo "2215"]
[TimeControl "180+1"]
[EndTime "11:05:45 PDT"]
[Termination "Slovak_fighter2000 won by resignation"]

1. Nf3 {[%clk 0:03:00.9]} 1... d5 {[%clk 0:02:59.3]} 2. g3 {[%clk 0:03:00.6]}
2... e6 {[%clk 0:02:57.8]} 3. Bg2 {[%clk 0:03:00.6]} 3... b5 {[%clk 0:02:57.2]}
4. O-O {[%clk 0:03:00]} 4... Nf6 {[%clk 0:02:53.1]} 5. d3 {[%clk 0:02:59.9]}
5... c5 {[%clk 0:02:46.5]} 6. Nbd2 {[%clk 0:02:56.6]} 6... Be7 {[%clk
0:02:44.3]} 7. e4 {[%clk 0:02:53.8]} 7... O-O {[%clk 0:02:41.5]} 8. e5 {[%clk
0:02:53.3]} 8... Nfd7 {[%clk 0:02:41.3]} 9. Re1 {[%clk 0:02:53.5]} 9... Nc6
{[%clk 0:02:41.5]} 10. Nf1 {[%clk 0:02:52.2]} 10... Qc7 {[%clk 0:02:41.4]} 11.
Bf4 {[%clk 0:02:50.6]} 11... Bb7 {[%clk 0:02:41.5]} 12. h4 {[%clk 0:02:49.6]}
12... Rfc8 {[%clk 0:02:41.1]} 13. h5 {[%clk 0:02:46]} 13... h6 {[%clk
0:02:39.6]} 14. N1h2 {[%clk 0:02:45.3]} 14... Qd8 {[%clk 0:02:38.4]} 15. Ng4
{[%clk 0:02:42.7]} 15... Bf8 {[%clk 0:02:35.9]} 16. Qd2 {[%clk 0:02:37.5]} 16...
a5 {[%clk 0:02:35.7]} 17. c3 {[%clk 0:02:00]} 17... b4 {[%clk 0:02:33.4]} 18.
Rab1 {[%clk 0:01:52]} 18... a4 {[%clk 0:02:31.9]} 19. c4 {[%clk 0:01:51.6]}
19... dxc4 {[%clk 0:02:04.6]} 20. dxc4 {[%clk 0:01:51.1]} 20... Nb6 {[%clk
0:02:05.1]} 21. Qc2 {[%clk 0:01:35.7]} 21... Nd4 {[%clk 0:01:07.5]} 22. Nxd4
{[%clk 0:01:33.5]} 22... Bxg2 {[%clk 0:01:08.1]} 23. Nxe6 {[%clk 0:01:28]} 23...
fxe6 {[%clk 0:01:04]} 24. Kxg2 {[%clk 0:01:27]} 24... Qd4 {[%clk 0:00:53.4]} 25.
Qg6 {[%clk 0:01:11.1]} 25... Kh8 {[%clk 0:00:44.1]} 26. Bxh6 {[%clk 0:00:53.4]}
26... gxh6 {[%clk 0:00:43]} 27. Nf6 {[%clk 0:00:52.4]} 1-0

[Event "*** SCC Grand Prix: Titled Tuesday Blitz"]
[Site "Chess.com"]
[Date "2020.07.14"]
[Round "6"]
[White "Speshka"]
[Black "BakaPG"]
[Result "0-1"]
[WhiteElo "2193"]
[BlackElo "2642"]
[TimeControl "180+1"]
[EndTime "11:05:47 PDT"]
[Termination "BakaPG won by resignation"]

1. e4 {[%clk 0:03:00.9]} 1... e6 {[%clk 0:02:59.2]} 2. Qe2 {[%clk 0:02:59.3]}
2... c5 {[%clk 0:02:58.2]} 3. Nf3 {[%clk 0:02:56.9]} 3... Nc6 {[%clk 0:02:58.3]}
4. g3 {[%clk 0:02:56.5]} 4... Nge7 {[%clk 0:02:58.4]} 5. Bg2 {[%clk 0:02:55.7]}
5... d5 {[%clk 0:02:56.2]} 6. d3 {[%clk 0:02:54.9]} 6... g6 {[%clk 0:02:54.7]}
7. O-O {[%clk 0:02:54.2]} 7... Bg7 {[%clk 0:02:54.4]} 8. e5 {[%clk 0:02:50.5]}
8... h6 {[%clk 0:02:53.6]} 9. Re1 {[%clk 0:02:49.3]} 9... b5 {[%clk 0:02:51.2]}
10. a4 {[%clk 0:02:26.4]} 10... b4 {[%clk 0:02:50.8]} 11. Be3 {[%clk 0:02:23.8]}
11... d4 {[%clk 0:02:47]} 12. Bc1 {[%clk 0:02:22.8]} 12... a5 {[%clk 0:02:43.9]}
13. Nbd2 {[%clk 0:02:21.9]} 13... Ba6 {[%clk 0:02:42.9]} 14. Ne4 {[%clk
0:02:16.8]} 14... Qb6 {[%clk 0:02:35]} 15. Nd6+ {[%clk 0:02:15.5]} 15... Kf8
{[%clk 0:02:34.7]} 16. Bf4 {[%clk 0:02:11.6]} 16... Rd8 {[%clk 0:02:29.6]} 17.
h4 {[%clk 0:02:08.3]} 17... Nd5 {[%clk 0:02:26.5]} 18. Nd2 {[%clk 0:01:53]}
18... Nxf4 {[%clk 0:02:12.4]} 19. gxf4 {[%clk 0:01:51.9]} 19... Ne7 {[%clk
0:02:10.9]} 20. N2c4 {[%clk 0:01:46.4]} 20... Bxc4 {[%clk 0:02:10.8]} 21. Nxc4
{[%clk 0:01:46]} 21... Qc7 {[%clk 0:02:10.5]} 22. h5 {[%clk 0:01:35.8]} 22...
Rg8 {[%clk 0:01:57.6]} 23. hxg6 {[%clk 0:01:28]} 23... Nxg6 {[%clk 0:01:55.9]}
24. Qe4 {[%clk 0:01:20.8]} 24... Nh4 {[%clk 0:01:51.1]} 25. Kh2 {[%clk
0:01:00.8]} 25... Nxg2 {[%clk 0:01:49.6]} 26. Qxg2 {[%clk 0:00:59.6]} 26... Bxe5
{[%clk 0:01:46.1]} 27. Qh3 {[%clk 0:00:28.8]} 27... Bxf4+ {[%clk 0:01:42.7]} 28.
Kh1 {[%clk 0:00:28.2]} 28... Rd5 {[%clk 0:01:36.9]} 29. Rg1 {[%clk 0:00:25.1]}
29... Rdg5 {[%clk 0:01:29.7]} 30. Qxh6+ {[%clk 0:00:24.8]} 30... Ke7 {[%clk
0:01:28.6]} 31. Rxg5 {[%clk 0:00:23.3]} 31... Qc6+ {[%clk 0:01:24.7]} 32. Kg1
{[%clk 0:00:19.4]} 32... Rxg5+ {[%clk 0:01:21.7]} 0-1